{"text_format":"3","workbook":"xlsx","n_sheets":7,"sheets":["Luni","Marți","Miercuri","Joi","Vineri","Sâmbătă","Duminică"],"not_rendered":{"defined_names":21},"read":"whole","date_system":"1900"}

{"sheet":"Luni","index":0,"n_rows":10,"n_cols":13,"rows_kept":10,"merged":[[0,1,0,4],[1,2,1,4],[2,2,2,4]]}
[null,"Planificarea turelor"]
[null,"Pentru săptămâna: ","Dată"]
[null,"Nume departament: ","Nume"]
[]
[null,"LUNI","7:00","8:00","9:00","10:00","11:00","12:00","13:00","14:00","15:00","Concediu medical?","TOTAL"]
[null,"Nume 1","manager","manager","manager","manager","manager","manager","manager","manager","manager",null,{"$f":"COUNTIF(Luni[[#This Row],[7:00]:[15:00]],\"*\")","v":9}]
[null,"Nume 2",null,"casier","casier","casier","casier",{"$nulls":5},{"$f":"COUNTIF(Luni[[#This Row],[7:00]:[15:00]],\"*\")","v":4}]
[null,"Nume 3",null,"recepție","recepție","recepție","recepție ","recepție","recepție","recepție",null,null,{"$f":"COUNTIF(Luni[[#This Row],[7:00]:[15:00]],\"*\")","v":7}]
[null,"Nume 4",null,"recepție","recepție","recepție","recepție ","recepție","recepție","recepție",null,null,{"$f":"COUNTIF(Luni[[#This Row],[7:00]:[15:00]],\"*\")","v":7}]
[null,"Nume 5",{"$nulls":9},"Concediu medical",{"$f":"COUNTIF(Luni[[#This Row],[7:00]:[15:00]],\"*\")","v":0}]

{"sheet":"Marți","index":1,"n_rows":10,"n_cols":13,"rows_kept":10,"merged":[[0,1,0,4],[1,2,1,4],[2,2,2,4]]}
[null,"Planificarea turelor"]
[null,"Pentru săptămâna: ",{"$f":"Luni!C2","v":"Dată"}]
[null,"Nume departament: ",{"$f":"Luni!C3","v":"Nume"}]
[]
[null,"MARȚI","7:00","8:00","9:00","10:00","11:00","12:00","13:00","14:00","15:00","Concediu medical?","TOTAL"]
[null,"Nume 1","manager","manager","manager","manager","manager","manager","manager","manager","manager",null,{"$f":"COUNTIF(Marți[[#This Row],[7:00]:[15:00]],\"*\")","v":9}]
[null,"Nume 2",null,"casier","casier","casier","casier",{"$nulls":5},{"$f":"COUNTIF(Marți[[#This Row],[7:00]:[15:00]],\"*\")","v":4}]
[null,"Nume 3",null,"recepție","recepție","recepție","recepție ","recepție","recepție","recepție",null,null,{"$f":"COUNTIF(Marți[[#This Row],[7:00]:[15:00]],\"*\")","v":7}]
[null,"Nume 4",null,"recepție","recepție","recepție","recepție ","recepție","recepție","recepție",null,null,{"$f":"COUNTIF(Marți[[#This Row],[7:00]:[15:00]],\"*\")","v":7}]
[null,"Nume 5",{"$nulls":9},"Concediu medical",{"$f":"COUNTIF(Marți[[#This Row],[7:00]:[15:00]],\"*\")","v":0}]

{"sheet":"Miercuri","index":2,"n_rows":10,"n_cols":13,"rows_kept":10,"merged":[[0,1,0,4],[1,2,1,4],[2,2,2,4]]}
[null,"Planificarea turelor"]
[null,"Pentru săptămâna: ",{"$f":"Luni!C2","v":"Dată"}]
[null,"Nume departament: ",{"$f":"Luni!C3","v":"Nume"}]
[]
[null,"MIERCURI","7:00","8:00","9:00","10:00","11:00","12:00","13:00","14:00","15:00","Concediu medical?","TOTAL"]
[null,"Nume 1","manager","manager","manager","manager","manager","manager","manager","manager","manager",null,{"$f":"COUNTIF(Miercuri[[#This Row],[7:00]:[15:00]],\"*\")","v":9}]
[null,"Nume 2",null,"casier","casier","casier","casier",{"$nulls":5},{"$f":"COUNTIF(Miercuri[[#This Row],[7:00]:[15:00]],\"*\")","v":4}]
[null,"Nume 3",null,"recepție","recepție","recepție","recepție ","recepție","recepție","recepție",null,null,{"$f":"COUNTIF(Miercuri[[#This Row],[7:00]:[15:00]],\"*\")","v":7}]
[null,"Nume 4",null,"recepție","recepție","recepție","recepție ","recepție","recepție","recepție",null,null,{"$f":"COUNTIF(Miercuri[[#This Row],[7:00]:[15:00]],\"*\")","v":7}]
[null,"Nume 5",{"$nulls":9},"Concediu medical",{"$f":"COUNTIF(Miercuri[[#This Row],[7:00]:[15:00]],\"*\")","v":0}]

{"sheet":"Joi","index":3,"n_rows":10,"n_cols":13,"rows_kept":10,"merged":[[0,1,0,4],[1,2,1,4],[2,2,2,4]]}
[null,"Planificarea turelor"]
[null,"Pentru săptămâna: ",{"$f":"Luni!C2","v":"Dată"}]
[null,"Nume departament: ",{"$f":"Luni!C3","v":"Nume"}]
[]
[null,"JOI","7:00","8:00","9:00","10:00","11:00","12:00","13:00","14:00","15:00","Concediu medical?","TOTAL"]
[null,"Nume 1","manager","manager","manager","manager","manager","manager","manager","manager","manager",null,{"$f":"COUNTIF(Joi[[#This Row],[7:00]:[15:00]],\"*\")","v":9}]
[null,"Nume 2",null,"casier","casier","casier","casier",{"$nulls":5},{"$f":"COUNTIF(Joi[[#This Row],[7:00]:[15:00]],\"*\")","v":4}]
[null,"Nume 3",null,"recepție","recepție","recepție","recepție ","recepție","recepție","recepție",null,null,{"$f":"COUNTIF(Joi[[#This Row],[7:00]:[15:00]],\"*\")","v":7}]
[null,"Nume 4",null,"recepție","recepție","recepție","recepție ","recepție","recepție","recepție",null,null,{"$f":"COUNTIF(Joi[[#This Row],[7:00]:[15:00]],\"*\")","v":7}]
[null,"Nume 5",{"$nulls":9},"Concediu medical",{"$f":"COUNTIF(Joi[[#This Row],[7:00]:[15:00]],\"*\")","v":0}]

{"sheet":"Vineri","index":4,"n_rows":10,"n_cols":13,"rows_kept":10,"merged":[[0,1,0,4],[1,2,1,4],[2,2,2,4]]}
[null,"Planificarea turelor"]
[null,"Pentru săptămâna: ",{"$f":"Luni!C2","v":"Dată"}]
[null,"Nume departament: ",{"$f":"Luni!C3","v":"Nume"}]
[]
[null,"VINERI","7:00","8:00","9:00","10:00","11:00","12:00","13:00","14:00","15:00","Concediu medical?","TOTAL"]
[null,"Nume 1","manager","manager","manager","manager","manager","manager","manager","manager","manager",null,{"$f":"COUNTIF(Vineri[[#This Row],[7:00]:[15:00]],\"*\")","v":9}]
[null,"Nume 2",null,"casier","casier","casier","casier",{"$nulls":5},{"$f":"COUNTIF(Vineri[[#This Row],[7:00]:[15:00]],\"*\")","v":4}]
[null,"Nume 3",null,"recepție","recepție","recepție","recepție ","recepție","recepție","recepție",null,null,{"$f":"COUNTIF(Vineri[[#This Row],[7:00]:[15:00]],\"*\")","v":7}]
[null,"Nume 4",null,"recepție","recepție","recepție","recepție ","recepție","recepție","recepție",null,null,{"$f":"COUNTIF(Vineri[[#This Row],[7:00]:[15:00]],\"*\")","v":7}]
[null,"Nume 5",{"$nulls":9},"Concediu medical",{"$f":"COUNTIF(Vineri[[#This Row],[7:00]:[15:00]],\"*\")","v":0}]

{"sheet":"Sâmbătă","index":5,"n_rows":10,"n_cols":13,"rows_kept":10,"merged":[[0,1,0,4],[1,2,1,4],[2,2,2,4]]}
[null,"Planificarea turelor"]
[null,"Pentru săptămâna: ",{"$f":"Luni!C2","v":"Dată"}]
[null,"Nume departament: ",{"$f":"Luni!C3","v":"Nume"}]
[]
[null,"SÂMBĂTĂ","7:00","8:00","9:00","10:00","11:00","12:00","13:00","14:00","15:00","Concediu medical?","TOTAL"]
[null,"Nume 1","manager","manager","manager","manager","manager","manager","manager","manager","manager",null,{"$f":"COUNTIF(Sâmbătă[[#This Row],[7:00]:[15:00]],\"*\")","v":9}]
[null,"Nume 2",null,"casier","casier","casier","casier",{"$nulls":5},{"$f":"COUNTIF(Sâmbătă[[#This Row],[7:00]:[15:00]],\"*\")","v":4}]
[null,"Nume 3",null,"recepție","recepție","recepție","recepție ","recepție","recepție","recepție",null,null,{"$f":"COUNTIF(Sâmbătă[[#This Row],[7:00]:[15:00]],\"*\")","v":7}]
[null,"Nume 4",null,"recepție","recepție","recepție","recepție ","recepție","recepție","recepție",null,null,{"$f":"COUNTIF(Sâmbătă[[#This Row],[7:00]:[15:00]],\"*\")","v":7}]
[null,"Nume 5",{"$nulls":9},"Concediu medical",{"$f":"COUNTIF(Sâmbătă[[#This Row],[7:00]:[15:00]],\"*\")","v":0}]

{"sheet":"Duminică","index":6,"n_rows":10,"n_cols":13,"rows_kept":10,"merged":[[0,1,0,4],[1,2,1,4],[2,2,2,4]]}
[null,"Planificarea turelor"]
[null,"Pentru săptămâna: ",{"$f":"Luni!C2","v":"Dată"}]
[null,"Nume departament: ",{"$f":"Luni!C3","v":"Nume"}]
[]
[null,"DUMINICĂ","7:00","8:00","9:00","10:00","11:00","12:00","13:00","14:00","15:00","Concediu medical?","TOTAL"]
[null,"Nume 1","manager","manager","manager","manager","manager","manager","manager","manager","manager",null,{"$f":"COUNTIF(Duminică[[#This Row],[7:00]:[15:00]],\"*\")","v":9}]
[null,"Nume 2",null,"casier","casier","casier","casier",{"$nulls":5},{"$f":"COUNTIF(Duminică[[#This Row],[7:00]:[15:00]],\"*\")","v":4}]
[null,"Nume 3",null,"recepție","recepție","recepție","recepție ","recepție","recepție","recepție",null,null,{"$f":"COUNTIF(Duminică[[#This Row],[7:00]:[15:00]],\"*\")","v":7}]
[null,"Nume 4",null,"recepție","recepție","recepție","recepție ","recepție","recepție","recepție",null,null,{"$f":"COUNTIF(Duminică[[#This Row],[7:00]:[15:00]],\"*\")","v":7}]
[null,"Nume 5",{"$nulls":9},"Concediu medical",{"$f":"COUNTIF(Duminică[[#This Row],[7:00]:[15:00]],\"*\")","v":0}]